bitfinex/quotes_ETHUSD_20250903
["timestamp","ask_amount","ask_price","bid_price","bid_amount"]
[1756907326159,2.68860327,4437.4,4436.2,2.25414366]
[1756907326355,2.68860327,4437.4,4436.1,0.1128]
[1756907326356,0.1128,4436.7,4436.1,0.1128]
[1756907326658,0.1128,4437.1,4435.9,2.26566075]
[1756907326873,0.1128,4437.1,4435.8,0.6474]
[1756907326874,0.1128,4437.1,4436.5,2.36678747]
[1756907327088,0.1128,4437.1,4436.5,0.1128]
[1756907327291,0.02817218,4437.0,4436.5,0.1128]
[1756907327463,0.435,4436.9,4435.8,0.6474]
[1756907327791,0.1128,4436.7,4436.1,0.1128]
[1756907327966,2.168,4436.6,4435.8,0.025]
[1756907328168,2.36713395,4435.9,4435.8,0.025]
[1756907328372,2.39531312,4435.9,4435.8,0.025]
[1756907328568,3.45171312,4435.9,4435.8,0.025]
[1756907328772,3.42353395,4435.9,4435.8,0.025]
[1756907328971,3.45171312,4435.9,4435.8,0.025]
[1756907329188,3.37651312,4435.9,4435.8,0.025]
[1756907329510,3.34833395,4435.9,4435.8,0.025]
[1756907329808,7.86351312,4435.9,4435.8,0.025]
[1756907330023,7.83533395,4435.9,4435.8,0.025]
[1756907330378,10.83533395,4435.9,4435.8,1e-08]
[1756907331700,11.62733395,4435.9,4435.8,1e-08]
[1756907332089,11.69013395,4435.9,4435.8,1e-08]
[1756907332313,7.20313395,4435.9,4435.8,1e-08]
[1756907332849,6.41113395,4435.9,4435.8,1e-08]
[1756907333178,10.88513395,4435.9,4435.8,0.00100001]
[1756907333406,10.88713395,4435.9,4435.8,0.00100001]
[1756907333606,10.88713395,4435.9,4433.8,0.025]
[1756907333607,3.0,4435.8,4433.8,0.025]
[1756907333913,6.04658808,4435.4,4435.3,0.001]
[1756907334100,2.25463891,4435.3,4433.8,0.025]
[1756907334304,0.1128,4433.9,4432.8,0.025]
[1756907334505,2.36865959,4432.9,4432.8,0.025]
[1756907334704,0.1128,4432.9,4432.8,0.025]
[1756907334900,2.36865959,4432.9,4432.8,0.025]
[1756907335202,0.1128,4433.6,4432.8,1.2268]
[1756907335516,0.02819442,4433.5,4432.8,0.7602]
[1756907335719,0.1128,4433.4,4432.8,1.2268]
[1756907335881,0.1128,4433.8,4433.1,0.1128]
[1756907336079,6.052,4434.4,4432.8,0.6474]
[1756907336080,4.50519315,4433.7,4432.8,0.6474]
[1756907336419,2.25536602,4433.9,4432.8,0.6474]
[1756907336420,4.476,4433.6,4432.9,0.4666]
[1756907336643,2.25554376,4433.6,4433.0,0.6224]
[1756907336829,4.476,4434.0,4433.0,0.6224]
[1756907337187,1.733,4434.4,4433.0,0.6224]
[1756907337389,0.02818743,4434.6,4433.1,0.4666]
[1756907337589,0.02818743,4434.6,4433.2,0.9047]
[1756907338000,2.25565605,4433.3,4433.2,0.6224]
[1756907338201,2.25498353,4434.7,4432.8,0.025]
[1756907338202,2.25529995,4434.0,4432.8,0.025]
[1756907338421,2.25585959,4432.9,4432.8,0.025]
[1756907339092,0.02819379,4433.6,4432.8,0.6474]
[1756907339440,4.734,4434.4,4432.8,2.90326622]
[1756907339595,4.734,4434.4,4432.8,0.6474]
[1756907339796,2.25519823,4434.2,4432.8,0.6474]
[1756907339994,2.25553688,4433.6,4432.8,0.6474]
[1756907340196,4.467,4434.1,4432.8,0.6474]
[1756907340402,1.734,4434.4,4432.8,0.6474]
[1756907340602,2.25585959,4432.9,4432.8,0.025]
[1756907340834,2.28405783,4432.9,4432.8,0.025]
[1756907341036,1.734,4433.4,4432.8,0.6065]
[1756907341550,3.0,4434.9,4432.8,0.6065]
[1756907341551,6.71816113,4434.3,4432.9,0.47486799]
[1756907341704,1.759,4434.8,4433.0,0.5815]
[1756907341908,0.025,4434.8,4433.2,0.792]
[1756907342116,0.025,4434.8,4433.4,3.04760517]
[1756907342330,0.025,4434.8,4433.3,2.51169376]
[1756907342331,0.02738679,4434.7,4433.3,2.50033594]
[1756907342504,0.02818679,4434.7,4433.3,4.75598013]
[1756907342707,2.2555164,4433.6,4433.3,2.3155]
[1756907343025,2.27990116,4434.8,4433.4,2.779]
[1756907343233,0.025,4434.8,4433.5,1.045]
[1756907343404,0.025,4434.8,4433.4,1.734]
[1756907343405,0.025,4434.8,4434.0,2.25525949]
[1756907343605,0.02818679,4434.7,4433.6,0.5815]
[1756907343802,2.25545255,4433.7,4433.6,0.5815]
[1756907344048,2.25575782,4433.1,4433.0,0.5815]
[1756907344213,0.025,4434.8,4433.0,1.045]
[1756907344412,0.025,4434.8,4432.8,0.025]
[1756907344413,0.025,4434.8,4433.1,0.5815]
[1756907344613,0.025,4434.8,4433.2,0.4635]
[1756907344813,0.025,4434.8,4433.3,0.792]
[1756907345117,0.025,4434.8,4433.4,0.40927474]
[1756907345318,0.025,4434.8,4433.5,19.98671433]
[1756907345631,0.025,4434.8,4434.5,2.25501788]
[1756907345832,0.025,4434.8,4434.7,2.25494396]
[1756907346024,0.025,4434.8,4434.5,2.25499649]
[1756907346225,0.025,4434.8,4434.7,2.31774396]
[1756907346425,0.025,4434.8,4434.7,17.81945829]
[1756907346638,0.025,4434.8,4434.7,18.98646845]
[1756907346960,0.025,4435.8,4435.7,3.0464356]
[1756907347112,0.025,4435.8,4435.7,24.07894993]
[1756907347317,0.025,4437.8,4437.2,3.04567348]
[1756907347631,0.025,4437.8,4437.7,3.04541956]
[1756907347830,0.025,4438.8,4437.8,0.792]
[1756907348061,0.025,4438.8,4438.7,2.25291188]
[1756907348236,0.025,4438.8,4438.7,8.66782576]
[1756907348438,0.025,4438.8,4438.7,2.51841388]
[1756907348638,0.025,4438.8,4438.7,4.56841188]
[1756907348860,0.025,4438.8,4438.7,5.75233066]
[1756907349030,0.025,4438.8,4438.7,6.21583066]
[1756907349231,0.025,4438.8,4438.7,3.96291878]
[1756907349430,0.025,4438.8,4438.7,2.3155]
[1756907349682,0.025,4438.8,4438.7,1.734]
[1756907349860,0.025,4438.8,4438.7,5.23418938]
[1756907350060,0.025,4438.8,4438.7,6.02618938]
[1756907350263,0.025,4438.8,4438.7,5.23418938]
[1756907350437,0.025,4438.8,4438.7,8.29409735]
[1756907351046,0.025,4438.8,4438.7,11.97009735]
[1756907351263,0.025,4438.8,4438.7,25.20390371]
[1756907351948,1e-08,4438.8,4438.7,28.20390371]
[1756907352337,0.00200001,4438.8,4438.7,2.9802775]
[1756907352540,0.00200001,4438.8,4438.7,4.56741188]
[1756907352858,0.00200001,4438.8,4438.7,9.03241188]
[1756907353071,0.025,4440.8,4438.7,9.03241188]
[1756907353072,0.025,4440.8,4440.7,2.25189722]
[1756907353245,0.025,4440.8,4440.7,14.65689722]
[1756907353446,0.025,4440.8,4440.7,15.71989722]
[1756907353641,0.025,4440.8,4440.7,14.46339722]
[1756907353846,0.025,4440.8,4440.7,15.71889722]
[1756907354065,0.025,4440.8,4440.7,17.51598479]
[1756907354591,0.025,4440.8,4440.7,11.623]
[1756907354790,0.025,4440.8,4440.7,7.15]
[1756907355097,2.27684651,4440.8,4440.7,1.733]
[1756907355250,2.27684651,4440.8,4440.7,6.205]
[1756907355459,0.025,4440.8,4440.7,6.205]
[1756907356078,2.27684651,4440.8,4440.7,1.733]
[1756907356278,2.25210008,4440.3,4440.2,4.466]
[1756907356568,2.71450008,4440.3,4440.2,4.466]
[1756907356780,2.25210008,4440.3,4440.2,4.466]
[1756907356977,2.25220152,4440.1,4440.0,6.196]
[1756907357178,0.4624,4440.5,4440.0,6.196]
[1756907357401,0.025,4440.8,4440.0,6.196]
[1756907357600,0.025,4440.8,4440.3,0.1128]
[1756907358173,2.25218954,4440.2,4440.0,1.733]
[1756907358391,2.25204936,4440.4,4440.3,4.458]
[1756907358571,2.71444936,4440.4,4440.3,4.458]
[1756907359073,2.25240444,4439.7,4439.6,0.1128]
[1756907359260,2.25230728,4439.9,4439.4,0.1128]
[1756907359261,0.1128,4439.9,4439.4,0.1128]
[1756907359459,0.1128,4439.9,4439.4,4.5658]
[1756907359994,0.4624,4441.2,4439.7,0.1128]
[1756907360214,0.1128,4441.1,4440.4,0.1128]
[1756907360413,2.25181402,4440.9,4440.5,4.449]
[1756907360623,2.25199864,4440.5,4440.4,0.1128]
[1756907360817,2.25208491,4440.4,4440.2,1.732]
[1756907361111,0.4624,4440.4,4439.9,4.446]
[1756907361333,0.5752,4440.3,4439.9,4.446]
[1756907361482,2.25225225,4440.0,4439.9,4.446]
[1756907361689,2.25220925,4440.1,4439.9,4.446]
[1756907361999,0.02815188,4440.2,4439.5,1.8448]
[1756907362203,2.25245517,4439.6,4439.5,1.732]
[1756907362398,2.25245517,4439.6,4439.2,0.1128]
[1756907362399,2.25260739,4439.3,4439.2,0.1128]
[1756907362599,0.5821,4441.3,4439.3,0.5815]
[1756907362782,0.4624,4442.6,4440.7,2.25189722]
[1756907363011,2.27783299,4442.8,4440.7,10.49708694]
[1756907363319,0.1128,4442.7,4440.7,10.60988694]
[1756907363817,1e-08,4440.8,4440.7,10.60988694]
[1756907364321,0.027,4442.8,4441.7,2.25139023]
[1756907364522,0.027,4442.8,4441.7,8.43039023]
[1756907364818,0.027,4442.8,4441.7,9.57097202]
[1756907365032,0.027,4442.8,4441.7,10.82647202]
[1756907365326,1e-08,4441.8,4441.7,10.82647202]
[1756907366737,0.02620001,4442.8,4441.8,0.792]
[1756907366914,0.02620001,4442.8,4442.7,0.1128]
[1756907367117,0.02620001,4442.8,4442.7,4.5458]
[1756907369140,0.48860001,4442.8,4442.3,4.422]
[1756907369440,0.02620001,4442.8,4442.7,0.1128]
[1756907370603,0.02620001,4442.8,4442.7,3.98188347]
[1756907370818,0.002,4443.3,4443.2,3.04263017]
[1756907371032,0.002,4443.3,4443.2,7.45863017]
[1756907371227,0.002,4443.3,4443.2,2.25063017]
[1756907371429,0.002,4443.3,4443.2,4.418]
[1756907371735,0.4679,4443.3,4443.0,4.417]
[1756907372040,0.4659,4443.2,4443.0,4.417]
[1756907372221,2.25063225,4443.2,4443.0,4.417]
[1756907372399,0.4659,4443.1,4441.6,5.411]
[1756907372735,0.4659,4443.1,4441.7,6.149]
[1756907372736,2.25093958,4442.6,4441.7,6.149]
[1756907372933,0.4659,4442.6,4441.7,6.149]
[1756907373137,2.25104078,4442.4,4441.7,6.149]
[1756907373343,0.4659,4442.6,4441.7,6.149]
[1756907373517,0.02813794,4442.4,4441.7,6.149]
[1756907373719,1.0461,4442.3,4441.3,4.411]
[1756907374037,0.4659,4442.2,4441.3,4.411]
[1756907374439,0.02813984,4442.1,4441.3,4.411]
[1756907374640,0.02813984,4442.1,4440.8,0.025]
[1756907374641,2.25123818,4442.0,4441.8,0.025]
[1756907374838,1.0461,4441.9,4441.8,0.025]
[1756907375047,2.71718886,4441.9,4441.8,0.025]
[1756907375349,0.4659,4441.9,4441.8,0.025]
[1756907375533,2.71718886,4441.9,4441.8,0.025]
[1756907375738,0.4659,4442.6,4441.8,0.025]
[1756907375943,0.4659,4442.6,4441.8,4.427]
[1756907376144,2.25103175,4442.5,4441.8,4.427]
[1756907376342,2.25103877,4442.4,4441.8,4.427]
[1756907376540,0.02813794,4442.4,4441.8,0.025]
[1756907376739,1.0461,4442.3,4441.8,0.025]
[1756907376962,2.25123818,4442.0,4441.8,0.025]
[1756907377132,2.27942997,4441.9,4441.8,0.025]
[1756907377463,3.32552997,4441.9,4441.8,0.025]
[1756907377623,3.29738886,4441.9,4441.8,0.025]
[1756907377823,2.71718886,4441.9,4441.8,0.025]
[1756907378128,3.29738886,4441.9,4441.8,0.025]
[1756907378529,2.71718886,4441.9,4441.8,0.025]
[1756907379834,2.25123395,4442.1,4441.8,0.025]
[1756907380135,2.71718886,4441.9,4441.8,0.025]
[1756907380440,2.74532997,4441.9,4441.8,0.025]
[1756907380629,3.32552997,4441.9,4441.8,0.025]
[1756907381038,3.43832997,4441.9,4441.8,0.025]
[1756907381238,3.41018886,4441.9,4441.8,0.025]
[1756907381545,7.83532997,4441.9,4441.8,0.025]
[1756907381730,7.80718886,4441.9,4441.8,0.025]
[1756907382262,3.41018886,4441.9,4441.8,0.025]
[1756907382426,4.397,4442.4,4441.8,0.025]
[1756907382620,0.1128,4441.9,4441.8,0.025]
[1756907383063,2.36408886,4441.9,4441.8,0.025]
[1756907383259,0.1128,4441.9,4441.8,0.025]
[1756907383561,0.1128,4442.4,4441.8,0.1378]
[1756907383727,0.1128,4442.4,4442.2,2.25113353]
[1756907384056,2.36370174,4442.7,4441.8,0.1378]
[1756907384256,0.02813667,4442.6,4441.8,0.1378]
[1756907384455,2.25128886,4441.9,4441.8,0.025]
[1756907384625,0.1128,4441.9,4441.8,0.025]
[1756907384955,4.397,4443.0,4441.8,0.025]
[1756907385126,0.1128,4442.3,4441.8,0.025]
[1756907385323,0.4659,4442.2,4441.8,0.025]
[1756907385553,0.5802,4442.7,4441.8,0.025]
[1756907385554,0.1128,4442.0,4441.8,0.025]
[1756907385891,0.1128,4442.2,4441.8,0.025]
[1756907386471,2.25120539,4442.1,4441.8,0.025]
[1756907386783,0.1128,4442.2,4441.8,0.025]
[1756907386950,2.36395654,4442.2,4441.8,0.025]
[1756907387152,0.4659,4442.9,4441.8,0.025]
[1756907387449,0.1128,4442.1,4441.8,0.025]
[1756907388285,0.002,4443.3,4443.2,2.25063017]
[1756907388487,0.002,4443.3,4443.2,7.65211019]
[1756907389368,0.002,4443.3,4443.2,7.20421019]
[1756907390086,0.002,4443.3,4443.2,8.56563834]
[1756907390292,0.002,4443.3,4443.2,9.64727245]
[1756907390486,0.002,4443.3,4443.2,8.85527245]
[1756907390693,0.002,4443.3,4443.2,8.11021413]
[1756907390872,0.002,4443.3,4443.2,9.27921019]
[1756907391395,0.0012,4443.3,4443.2,9.07653017]
[1756907391574,0.0012,4443.3,4443.2,6.2398]
[1756907391774,0.0012,4443.3,4443.2,9.07653017]
[1756907392296,0.0012,4443.3,4443.2,4.68053017]
[1756907392594,0.0012,4443.3,4443.2,8.48943017]
[1756907392759,0.0012,4443.3,4443.2,9.89022097]
[1756907392959,0.0012,4443.3,4443.2,9.18255584]
[1756907393193,0.0012,4443.3,4443.2,8.48943017]
[1756907393396,0.0012,4443.3,4443.2,1.8438]
[1756907393593,0.0012,4443.3,4441.9,5.411]
[1756907393594,0.5799,4443.3,4442.6,0.1128]
[1756907393800,0.114,4443.3,4442.6,0.1128]
[1756907393998,2.25076083,4443.0,4442.6,0.1128]
[1756907394173,0.114,4443.3,4442.6,0.1128]
[1756907394708,1e-08,4443.3,4443.2,2.25063017]
[1756907394873,1e-08,4443.3,4443.2,8.96273017]
[1756907395079,1e-08,4443.3,4443.2,1.731]
[1756907395773,1e-08,4443.3,4443.2,3.98163017]
[1756907397705,1e-08,4443.3,4443.2,3.97720534]
[1756907397863,1e-08,4443.3,4443.2,4.56330534]
[1756907398066,1e-08,4443.3,4443.2,1.72657517]
[1756907398268,1e-08,4443.3,4443.2,6.12057517]
[1756907399078,1e-08,4443.3,4443.2,1.72657517]
[1756907399400,1e-08,4443.3,4443.2,6.11957517]
[1756907400306,1.03150001,4443.3,4442.4,1.73]
[1756907400512,0.50133287,4443.2,4441.8,0.025]
[1756907400732,2.25128886,4441.9,4441.8,0.025]
[1756907401009,1.05963287,4443.2,4441.8,0.025]
[1756907401010,0.4732,4442.8,4441.8,0.025]
[1756907401314,0.4732,4442.8,4441.8,2.2763374]
[1756907401613,1e-08,4443.3,4442.0,0.792]
[1756907401772,0.50133225,4443.3,4442.1,0.35765518]
[1756907402114,1e-08,4443.3,4442.2,4.393]
[1756907402442,1e-08,4443.3,4442.1,0.35765518]
[1756907402718,1e-08,4443.3,4443.2,3.04263017]
[1756907403007,1e-08,4443.8,4443.7,2.25037693]
[1756907403217,1e-08,4443.8,4443.7,7.43537693]
[1756907403423,1e-08,4443.8,4443.7,8.45287693]
[1756907403573,1e-08,4443.8,4443.7,7.21057693]
[1756907403774,1e-08,4443.8,4443.7,8.12937988]
[1756907404385,1e-08,4443.8,4443.7,4.30457988]
[1756907404584,1e-08,4443.8,4443.7,6.64237693]
[1756907404790,1e-08,4443.8,4443.7,6.75517693]
[1756907405619,1e-08,4443.8,4443.7,2.36317693]
[1756907405776,1e-08,4443.8,4443.7,6.75517693]
[1756907405982,1e-08,4443.8,4443.7,4.5048]
[1756907406177,1e-08,4443.8,4441.8,2.27729107]
[1756907406178,2.25082284,4442.9,4441.8,2.2773338]
[1756907406392,0.4732,4442.9,4442.1,4.392]
[1756907406629,2.25073224,4443.0,4442.1,6.64318682]
[1756907406778,0.00200001,4443.8,4442.3,2.25107957]
[1756907406779,2.25038031,4443.7,4442.3,2.25107957]
[1756907406978,2.25037835,4443.7,4442.8,2.25080691]
[1756907407215,0.47520001,4443.8,4442.5,1.73]
[1756907407216,0.03012908,4443.8,4442.5,1.73]
[1756907407389,0.03012908,4443.8,4441.8,0.26809858]
[1756907407390,2.25092595,4442.7,4442.1,4.391]
[1756907407589,0.4732,4442.8,4442.1,4.391]
[1756907407791,0.4732,4443.4,4442.1,5.0057]
[1756907408231,0.4732,4443.4,4442.2,4.391]
[1756907408232,2.25080478,4442.9,4442.2,4.391]
[1756907408383,0.00200001,4443.8,4442.3,4.391]
[1756907408579,0.00200001,4443.8,4441.8,1.756]
[1756907408580,0.00200001,4443.8,4443.1,2.25068083]
[1756907408781,0.00200001,4443.8,4443.7,2.25037693]
[1756907409017,0.00200001,4443.8,4443.7,6.64137693]
[1756907409213,0.00200001,4443.8,4443.7,7.53055981]
[1756907409619,0.00200001,4443.8,4443.7,8.09775981]
[1756907409822,0.00200001,4443.8,4443.7,2.25037693]
[1756907409983,0.00200001,4443.8,4443.7,4.391]
[1756907410187,0.00200001,4443.8,4443.7,6.64137693]
[1756907410480,0.00200001,4443.8,4443.7,7.20857693]
[1756907410682,0.00200001,4443.8,4443.7,2.25037693]
[1756907410887,0.00200001,4443.8,4443.7,7.09146223]
[1756907411106,0.00200001,4443.8,4443.7,4.391]
[1756907411502,0.00200001,4443.8,4443.7,6.64137693]
[1756907411705,0.00200001,4443.8,4443.7,4.391]
[1756907412109,0.00200001,4443.8,4443.7,6.64137693]
[1756907412624,0.00200001,4443.8,4443.2,1.73]
[1756907412790,1.0315,4443.7,4443.0,4.391]
[1756907413385,0.4732,4443.7,4443.0,4.391]
[1756907413621,0.00200001,4443.8,4443.0,4.391]
[1756907413913,2.25037693,4443.7,4443.0,4.391]
[1756907414080,2.25042763,4443.6,4443.0,4.391]
[1756907414286,2.72357887,4443.7,4443.0,4.391]
[1756907414621,2.25049421,4443.5,4443.0,4.391]
[1756907414780,2.25049421,4443.5,4442.5,1.73]
[1756907414781,1.0315,4443.4,4442.5,1.73]
[1756907414987,1.0315,4443.4,4442.7,4.391]
[1756907414988,0.02813224,4443.3,4442.7,4.391]
[1756907415316,1.0315,4443.4,4442.5,1.73]
[1756907415516,2.25077405,4443.0,4442.5,1.73]
[1756907415920,0.02813287,4443.2,4441.8,0.026]
[1756907416106,2.25113315,4442.3,4441.8,0.026]
[1756907416617,2.2511315,4442.3,4441.8,0.026]
[1756907416827,2.25118533,4442.2,4441.8,0.026]
[1756907417115,0.1128,4442.3,4441.8,0.026]
[1756907417708,0.4732,4442.2,4441.8,0.026]
[1756907417909,2.25128886,4441.9,4441.8,0.026]
[1756907418130,2.25128886,4441.9,4439.8,0.026]
[1756907418131,2.25146379,4441.6,4439.8,0.026]
[1756907418294,13.80869347,4441.9,4439.8,0.026]
[1756907418295,2.2517958,4440.9,4439.8,0.026]
[1756907418928,5.25184651,4440.8,4439.8,0.026]
[1756907419133,2.25230297,4439.9,4438.8,0.025]
[1756907419631,2.25255665,4439.4,4438.8,0.025]
[1756907420243,1.73,4440.0,4438.8,0.025]
[1756907420522,0.4732,4440.1,4438.8,0.392]
[1756907420743,2.25212443,4440.3,4438.9,0.01308582]
[1756907420913,1.731,4441.0,4438.9,0.01308582]
[1756907420914,1.731,4441.0,4438.9,0.001]
[1756907421110,2.25232382,4439.9,4438.9,2.25380394]
[1756907421308,0.02815251,4440.1,4438.9,0.001]
[1756907421507,2.25235992,4439.8,4438.9,0.001]
[1756907421748,2.25245946,4439.6,4438.9,0.001]
[1756907421923,0.02815505,4439.7,4438.9,0.001]
[1756907421924,0.02815632,4439.5,4438.9,0.001]
[1756907422124,2.25255665,4439.4,4438.9,0.001]
[1756907422312,2.72575665,4439.4,4438.9,0.001]
[1756907422511,0.4732,4439.4,4438.9,0.001]
[1756907422746,2.72575665,4439.4,4438.9,0.001]
[1756907422913,3.28405665,4439.4,4438.9,0.001]
[1756907423931,3.3122136,4439.4,4438.9,0.001]
[1756907424462,7.7032136,4439.4,4438.9,0.001]
[1756907424747,7.67505665,4439.4,4438.9,0.001]
[1756907425114,3.28405665,4439.4,4438.9,0.001]
[1756907425847,2.72575665,4439.4,4438.9,0.001]
[1756907426235,2.7539136,4439.4,4438.9,0.001]
[1756907427154,0.02815695,4439.4,4438.9,0.001]
[1756907427337,0.02815442,4439.8,4438.9,0.001]
[1756907427527,0.4732,4439.7,4438.9,0.001]
[1756907427942,2.25255665,4439.4,4438.9,0.001]
[1756907428149,2.2807136,4439.4,4438.9,0.001]
[1756907428344,2.25275963,4439.0,4438.9,0.001]
[1756907428657,2.25275963,4439.0,4438.4,0.001]
[1756907428658,2.2530134,4438.5,4438.4,0.001]
[1756907428829,2.25281038,4438.9,4438.4,0.001]
[1756907428830,1.0315,4438.9,4438.4,0.001]
[1756907429034,2.8390134,4438.5,4438.4,0.001]
[1756907429360,2.86717606,4438.5,4438.4,0.001]
[1756907429729,1.15006266,4438.5,4438.4,0.001]
[1756907429931,0.1128,4438.5,4438.4,0.001]
[1756907430345,0.02815759,4439.3,4438.4,0.5692]
[1756907430346,0.1128,4438.9,4438.4,0.5692]
[1756907430519,0.1128,4438.9,4438.4,0.001]
[1756907430735,1.757,4439.8,4438.8,0.1128]
[1756907430736,0.1378,4439.8,4438.8,0.1128]
[1756907430936,0.1378,4439.8,4439.7,2.25240444]
[1756907430937,0.025,4439.8,4439.7,2.25240444]
[1756907431154,0.025,4439.8,4439.7,2.82060444]
[1756907431366,0.025,4439.8,4439.7,3.28068758]
[1756907431866,0.025,4439.8,4439.7,7.78448758]
[1756907432072,0.025,4439.8,4439.7,7.77240444]
[1756907432238,0.025,4439.8,4439.7,10.04031241]
[1756907432870,0.025,4439.8,4439.7,10.83231241]
[1756907433900,0.025,4439.8,4439.7,0.1128]
[1756907434038,3.27460812,4439.8,4439.7,0.1128]
[1756907434242,0.48635442,4439.8,4439.7,0.1128]
[1756907434479,0.025,4439.8,4438.4,0.5692]
[1756907434660,0.02815505,4439.7,4438.4,0.5692]
[1756907434861,0.02815505,4439.7,4438.4,0.001]
[1756907435377,2.25275236,4439.1,4438.4,0.001]
[1756907435691,2.25276213,4439.0,4438.4,0.001]
[1756907435891,0.025,4439.8,4438.4,0.001]
[1756907436492,0.05315442,4439.8,4438.4,0.001]
[1756907436790,2.25249951,4439.6,4438.7,2.25290488]
[1756907437008,2.25246264,4439.6,4438.7,2.25287003]
[1756907437189,0.05315442,4439.8,4439.0,2.25275943]
[1756907437373,0.025,4439.8,4439.1,2.25268041]
[1756907437686,0.025,4439.8,4438.7,4.39]
[1756907437885,2.25240541,4439.7,4438.8,2.25286113]
[1756907438096,0.025,4439.8,4438.7,4.39]
[1756907438258,2.25244943,4439.7,4438.9,2.25280815]
[1756907438582,0.025,4439.8,4438.7,4.39]
[1756907438583,0.025,4439.8,4439.0,2.25275363]
[1756907438778,2.2773604,4439.8,4439.0,2.25275363]
[1756907438971,2.25240444,4439.7,4438.8,2.25286061]
[1756907439171,2.25246863,4439.6,4438.8,2.25286061]
[1756907439360,2.27736814,4439.8,4438.7,4.39]
[1756907439704,0.02815505,4439.7,4438.6,4.389]
[1756907439872,2.25267267,4439.2,4438.4,0.001]
[1756907440217,0.0242,4439.8,4438.4,0.5692]
[1756907440361,0.0242,4439.8,4438.5,0.792]
[1756907440762,0.0242,4439.8,4439.7,2.25240444]
[1756907441055,0.0242,4439.8,4439.7,8.59864488]
[1756907441260,0.0242,4439.8,4439.7,1.732]
[1756907441574,0.4574,4439.8,4439.0,1.732]
[1756907441767,0.0242,4439.8,4439.0,1.732]
[1756907442505,0.0242,4439.8,4439.2,2.25264127]
[1756907442665,0.0242,4439.8,4439.0,1.732]
[1756907442866,0.0242,4439.8,4439.3,2.25259617]
[1756907443077,0.0242,4439.8,4439.0,1.732]
[1756907443307,0.0242,4439.8,4439.1,2.25270888]
[1756907443511,0.0242,4439.8,4439.0,2.5693816]
[1756907443718,0.0242,4439.8,4439.1,0.5682]
[1756907444201,0.0242,4439.8,4439.4,2.25252481]
[1756907444404,0.0242,4439.8,4439.2,4.388]
[1756907444573,0.0242,4439.8,4439.4,0.1128]
[1756907444765,2.2524575,4439.6,4439.4,0.1128]
[1756907444971,0.0242,4439.8,4439.1,0.1128]
[1756907445213,0.0242,4439.8,4439.4,2.25250996]
[1756907445410,0.0242,4439.8,4439.5,0.1128]
[1756907445733,0.0262,4439.8,4439.5,0.1128]
[1756907445935,2.25245517,4439.6,4439.5,0.1128]
[1756907446423,2.25245517,4439.6,4439.0,1.732]
[1756907446424,0.546,4439.6,4439.0,1.732]
[1756907446593,0.02815632,4439.5,4438.8,0.1128]
[1756907446794,0.02815632,4439.5,4438.5,0.001]
[1756907446795,2.25286113,4438.8,4438.5,0.001]
[1756907447239,2.25296264,4438.6,4438.5,0.001]
[1756907448730,0.1128,4438.7,4438.5,0.001]
[1756907449029,0.02895315,4440.0,4438.6,2.25292534]
[1756907449224,0.02895315,4440.0,4438.5,1.0172]
[1756907449225,2.25253736,4439.5,4438.5,2.82220209]
[1756907449442,0.02815505,4439.7,4438.5,0.5692]
[1756907449628,0.02815505,4439.7,4438.5,0.001]
[1756907449808,0.0262,4439.8,4438.6,2.3002]
[1756907449996,0.0262,4439.8,4439.5,2.25246474]
[1756907450196,0.0262,4439.8,4439.6,2.25244879]
[1756907450422,0.0262,4439.8,4439.5,2.25250065]
[1756907450626,0.0262,4439.8,4439.1,4.386]
[1756907450835,0.0262,4439.8,4439.2,0.4386]
[1756907451033,0.0262,4439.8,4439.6,2.25240914]
[1756907451338,0.0262,4439.8,4439.4,2.25255495]
[1756907451539,0.0262,4439.8,4439.6,2.25240866]
[1756907451737,0.0262,4439.8,4439.2,0.4386]
[1756907451913,0.0262,4439.8,4439.1,4.386]
[1756907452317,0.0262,4439.8,4439.2,2.25263963]
[1756907452520,0.0262,4439.8,4439.3,2.25260199]
[1756907452725,0.0262,4439.8,4439.5,2.25246749]
[1756907453002,0.0262,4439.8,4439.3,2.82079543]
[1756907453340,0.0262,4439.8,4439.7,2.25240444]
[1756907453649,0.0262,4439.8,4439.5,1.732]
[1756907454743,0.0262,4439.8,4439.6,2.2524514]
[1756907455037,0.0262,4439.8,4439.5,3.98450348]
[1756907455624,0.0262,4439.8,4439.5,1.732]
[1756907456029,0.0262,4439.8,4439.5,3.98446735]
[1756907456229,0.0262,4439.8,4439.7,2.25240444]
[1756907456840,0.0262,4439.8,4439.5,1.732]
[1756907458223,0.0262,4439.8,4439.2,4.9532]
[1756907458224,2.25271869,4439.1,4438.5,0.001]
[1756907458566,2.25280598,4439.0,4438.5,0.001]
[1756907458720,2.25271041,4439.1,4438.5,0.001]
[1756907458917,0.02815886,4439.1,4438.5,0.001]
[1756907459235,0.1128,4438.7,4438.5,0.001]
[1756907460349,0.5606,4438.7,4438.5,0.001]
[1756907460549,0.1128,4438.7,4438.5,0.001]
[1756907460763,0.1128,4439.1,4438.5,0.001]
[1756907461170,2.25280446,4439.0,4438.5,0.001]
[1756907461365,0.1128,4439.1,4438.5,0.001]
[1756907461567,0.02815949,4439.0,4438.5,0.001]
[1756907461773,0.1128,4438.7,4438.5,0.001]
[1756907462794,2.70076264,4438.6,4438.5,0.001]
[1756907463099,0.4478,4438.6,4438.5,0.001]
[1756907463251,2.70076264,4438.6,4438.5,0.001]